[Event "Gaprindashvili Cup Women I Stage 2020"]
[Site "Online"]
[Date "2020.11.04"]
[Round "4.6"]
[White "Kirtadze, Anastasia"]
[Black "Sichinava, Mariam"]
[Result "1-0"]
[ECO "B20"]
[WhiteElo "1810"]
[BlackElo "1516"]
[Annotator "NA RC"]
[PlyCount "87"]
[EventDate "2020.11.04"]
[EventType "swiss"]
[SourceTitle "playchess.com"]
[Source "ChessBase"]
[SourceQuality "1"]
[TimeControl "1500+5"]

{[%evp 8,75,61,11,6,16,12,13,24,25,2,6,43,24,57,47,58,15,7,-67,-60,-67,-72,-60,-59,-119,87,84,100,54,49,71,80,89,128,45,117,118,208,223,219,212,211,115,120,97,112,100,164,132,289,303,346,281,296,0,158,156,157,158,798,1143,1893,243,291,307,650,0,32,0]} 1. e4 {[%emt 0:00:17]} c5 {[%emt 0:00:03]} 2. Nf3 {[%emt 0:00:11]} e6 {[%emt 0:00:02]} 3. g3 {[%emt 0:00:12]} Nc6 {[%emt 0:00:28]} 4. Bg2 {[%emt 0:00:03]} g6 {[%emt 0:01:28]} 5. O-O {[%emt 0:00:25]} Bg7 {[%emt 0:00:02]} 6. c3 {[%emt 0:00:05]} Nge7 {[%emt 0:03:45]} 7. d4 {[%emt 0:02:43]} cxd4 {[%emt 0:00:05]} 8. Nxd4 {[%emt 0:00:05]} Nxd4 {[%emt 0:02:33] B20: Sicilian: Unusual White 2nd moves.} 9. cxd4 {[%emt 0:00:03]} d6 {[%emt 0:00:02]} 10. Nc3 {[%emt 0:00:10] [#]} Nc6 $146 {[%emt 0:00:24]} ({Predecessor:} 10... O-O 11. Be3 Nc6 12. Rc1 b6 13. e5 Bb7 14. Nb5 d5 15. Nd6 Qd7 16. Qa4 Nxe5 17. Qxd7 Nxd7 18. Nxb7 {1-0 (63) Hirschmann,J (1839)-Herbrig,A (1704) playchess.com INT 2012}) 11. d5 {[%emt 0:00:09]} exd5 {[%emt 0:00:40]} 12. exd5 {[%emt 0:00:06]} Ne5 {[%emt 0:00:03]} 13. f4 {[%emt 0:00:33]} (13. Qa4+ $11 Qd7 14. Qxd7+ Kxd7 15. Rd1) 13... Qb6+ {[%emt 0:00:56]} 14. Kh1 {[%emt 0:00:04]} Ng4 {[%emt 0:00:32]} 15. Qe2+ {[%emt 0:00:05] [#]} Kf8 $1 {[%emt 0:00:03]} 16. h3 {[%emt 0:00:05] [#]} ({White should play} 16. Re1 $15 Nf2+ 17. Kg1 Ng4+ 18. Kh1) 16... Nf6 $2 {[%emt 0:00:07]} (16... h5 $1 $17 {stays on course.} 17. Be4 (17. Re1 Bf5 $15) 17... Nh6) 17. Be3 {[%emt 0:00:09]} Qd8 {[%emt 0:00:25]} 18. Bd4 {[%emt 0:00:17]} Bd7 {[%emt 0:00:48]} 19. g4 {[%emt 0:00:31]} h5 {[%emt 0:03:21]} 20. g5 {[%emt 0:00:20]} Ng8 {[%emt 0:00:04]} 21. Bxg7+ {[%emt 0:00:20]} Kxg7 {[%emt 0:00:02]} 22. Ne4 {[%emt 0:00:04]} Ne7 {[%emt 0:00:13]} (22... Bf5 $16) 23. Nxd6 {[%emt 0:00:41]} Nf5 {[%emt 0:02:51]} 24. Qe5+ {[%emt 0:00:20]} f6 {[%emt 0:01:29]} 25. Nxf5+ {[%emt 0:00:45]} (25. gxf6+ $18 {and the rest is easy.} Qxf6 26. Ne4 (26. Nxb7 Ng3+ 27. Kg1 Nxf1 $15) 26... Qxe5 27. fxe5) 25... Bxf5 {[%emt 0:00:03]} 26. Qd4 {[%emt 0:00:04]} Qd6 {[%emt 0:00:32]} 27. Rfe1 {[%emt 0:00:11]} Rhe8 {[%emt 0:00:51]} 28. Rac1 {[%emt 0:00:12]} a6 {[%emt 0:01:20]} (28... Qb6 $16 {was worth a try.} 29. Rxe8 Rxe8 30. gxf6+ Kf8) 29. gxf6+ {[%emt 0:00:13]} Kh6 {[%emt 0:00:40]} 30. f7 {[%emt 0:00:49]} Rf8 {[%emt 0:00:05]} 31. Be4 $2 {[%emt 0:00:44]} (31. Qe5 $18 Qxe5 32. fxe5 Rxf7 33. h4) 31... Rxf7 $2 {[%emt 0:00:17]} ({Black should play} 31... Qxf4 $11 32. Rcd1 Rxf7 33. Bxf5 Qxf5) 32. Bxf5 {[%emt 0:00:47]} Rxf5 {[%emt 0:00:05]} 33. Re5 {[%emt 0:00:05]} Rff8 $2 {[%emt 0:00:56]} (33... Qf6 $16) 34. Rg1 {[%emt 0:00:47]} Rae8 {[%emt 0:00:48]} 35. Rgg5 $2 {[%emt 0:00:22]} (35. Qe4 Kh7 36. Rxe8 Rxe8 37. Qxe8 Qxd5+ 38. Rg2) 35... Qd7 {[%emt 0:01:11]} 36. Qd3 {[%emt 0:00:28]} Rf6 $2 {[%emt 0:00:15]} (36... Rg8 37. Rg2 Qf7) 37. Qc3 $11 {[%emt 0:01:05]} (37. Qe3 $18 Rxe5 38. fxe5) 37... Rxe5 {[%emt 0:00:21]} 38. Rxe5 {[%emt 0:00:08]} Qd6 {[%emt 0:00:12]} 39. Qe3 {[%emt 0:00:10]} Kg7 {[%emt 0:00:04]} 40. Re7+ {[%emt 0:00:13]} Rf7 {[%emt 0:00:02]} 41. Qd4+ {[%emt 0:00:23]} Kf8 {[%emt 0:00:03]} 42. Re6 {[%emt 0:00:10]} Rxf4 {[%emt 0:00:11]} 43. Qh8+ {[%emt 0:00:03]} Kf7 {[%emt 0:00:01]} 44. Rxd6 {[%emt 0:00:03]} 1-0

[Event "Gaprindashvili Cup Women I Stage 2020"]
[Site "Online"]
[Date "2020.11.04"]
[Round "4.7"]
[White "Zarkua, Anastasia"]
[Black "Dolakidze, Mariam"]
[Result "1-0"]
[ECO "A39"]
[WhiteElo "1124"]
[BlackElo "1416"]
[Annotator "NA RC"]
[PlyCount "101"]
[EventDate "2020.11.04"]
[EventType "swiss"]
[SourceTitle "playchess.com"]
[Source "ChessBase"]
[SourceQuality "1"]
[TimeControl "1500+5"]

1. Nf3 {[%emt 0:00:02]} c5 {[%emt 0:01:16]} 2. c4 {[%emt 0:00:05]} Nc6 {[%emt 0:00:01]} 3. g3 {[%emt 0:00:05]} Nf6 {[%emt 0:00:03]} 4. Bg2 {[%emt 0:00:01]} g6 {[%emt 0:00:02]} 5. O-O {[%emt 0:00:02]} Bg7 {[%emt 0:00:01]} 6. Nc3 {[%emt 0:00:06]} O-O {[%emt 0:00:06]} 7. d4 {[%emt 0:00:06]} cxd4 {[%emt 0:00:01]} 8. Nxd4 {[%emt 0:00:02]} Qc7 {[%emt 0:00:05]} 9. Nxc6 {[%emt 0:01:52]} bxc6 {[%emt 0:00:03]} 10. Bf4 {[%emt 0:00:04]} Qb6 {[%emt 0:00:21]} 11. Qc2 {[%emt 0:00:17]} Nh5 {[%emt 0:01:12]} 12. Be3 {[%emt 0:00:15]} Qb4 {[%emt 0:00:08]} 13. Qb3 {[%emt 0:02:31]} a5 {[%emt 0:01:31]} 14. Rfb1 {[%emt 0:02:17]} Ba6 {[%emt 0:00:23]} 15. Qc2 {[%emt 0:01:56]} Qxc4 {[%emt 0:00:15]} 16. Re1 {[%emt 0:00:39]} Rab8 {[%emt 0:00:11]} 17. Rac1 {[%emt 0:01:04]} d6 {[%emt 0:05:33]} 18. Qd2 {[%emt 0:01:40]} Bd4 {[%emt 0:01:03]} 19. Qxd4 {[%emt 0:00:41]} Qxd4 {[%emt 0:00:11]} 20. Bxd4 {[%emt 0:00:03]} e5 {[%emt 0:00:01]} 21. Be3 {[%emt 0:00:05]} d5 {[%emt 0:00:02]} 22. Bh6 {[%emt 0:00:07]} Rfc8 {[%emt 0:00:08]} 23. Na4 {[%emt 0:00:24]} Rc7 {[%emt 0:02:24]} 24. Nc5 {[%emt 0:00:15]} Bc8 {[%emt 0:00:09]} 25. b3 {[%emt 0:00:08]} Nf6 {[%emt 0:00:18]} 26. Bd2 {[%emt 0:00:03]} Ra8 {[%emt 0:00:16]} 27. Bf1 {[%emt 0:00:07]} Nd7 {[%emt 0:00:36]} 28. Nxd7 {[%emt 0:00:05]} Bxd7 {[%emt 0:00:01]} 29. Bg2 {[%emt 0:00:12]} Rb7 {[%emt 0:00:20]} 30. Rc2 {[%emt 0:00:09]} a4 {[%emt 0:00:24]} 31. b4 {[%emt 0:00:12]} Rb6 {[%emt 0:00:49]} 32. a3 {[%emt 0:00:06]} Bf5 {[%emt 0:00:08]} 33. e4 {[%emt 0:00:07]} Be6 {[%emt 0:00:40]} 34. exd5 {[%emt 0:00:03]} cxd5 {[%emt 0:00:10]} 35. Rxe5 {[%emt 0:00:06]} Rd8 {[%emt 0:00:01]} 36. Re1 {[%emt 0:00:27]} d4 {[%emt 0:00:07]} 37. Rec1 {[%emt 0:00:02]} Bb3 {[%emt 0:00:56]} 38. Rc8 {[%emt 0:00:10]} Rbd6 {[%emt 0:00:07]} 39. Rxd8+ {[%emt 0:00:39]} Rxd8 {[%emt 0:00:02]} 40. Bh3 {[%emt 0:00:03]} Kg7 {[%emt 0:00:05]} 41. b5 {[%emt 0:00:07]} Rb8 {[%emt 0:00:07]} 42. Bf1 {[%emt 0:00:04]} h5 {[%emt 0:00:19]} 43. Bf4 {[%emt 0:00:05]} Re8 {[%emt 0:00:31]} 44. b6 {[%emt 0:00:05]} Bd5 {[%emt 0:00:05]} 45. Bb5 {[%emt 0:00:07]} Re6 {[%emt 0:00:17]} 46. Bd7 {[%emt 0:00:11]} Rxb6 {[%emt 0:00:06]} 47. Bxa4 {[%emt 0:00:16]} d3 {[%emt 0:00:09]} 48. Bd1 {[%emt 0:00:11]} Rb2 {[%emt 0:00:20]} 49. Be5+ {[%emt 0:00:03]} f6 {[%emt 0:00:11]} 50. Bxb2 {[%emt 0:00:02]} d2 {[%emt 0:00:01]} 51. Rc2 {[%emt 0:00:03]} 1-0

[Event "Gaprindashvili Cup Women I Stage 2020"]
[Site "Online"]
[Date "2020.11.04"]
[Round "4.10"]
[White "Limar, Maria"]
[Black "Ashotia, Barbare"]
[Result "1/2-1/2"]
[ECO "C77"]
[WhiteElo "1229"]
[BlackElo "1076"]
[Annotator "NA RC"]
[PlyCount "164"]
[EventDate "2020.11.04"]
[EventType "swiss"]
[SourceTitle "playchess.com"]
[Source "ChessBase"]
[SourceQuality "1"]
[TimeControl "1500+5"]

1. e4 {[%emt 0:00:03]} e5 {[%emt 0:00:04]} 2. Nf3 {[%emt 0:00:02]} Nc6 {[%emt 0:00:02]} 3. Bb5 {[%emt 0:00:03]} a6 {[%emt 0:00:02]} 4. Ba4 {[%emt 0:00:02]} Nf6 {[%emt 0:00:02]} 5. d3 {[%emt 0:00:03]} b5 {[%emt 0:00:03]} 6. Bb3 {[%emt 0:00:03]} Bc5 {[%emt 0:00:20]} 7. Nc3 {[%emt 0:01:14]} h6 {[%emt 0:00:20]} 8. Nd5 {[%emt 0:01:15]} O-O {[%emt 0:00:38]} 9. O-O {[%emt 0:00:22]} d6 {[%emt 0:00:27]} 10. Be3 {[%emt 0:01:44]} Nd4 {[%emt 0:02:40]} 11. Nxd4 {[%emt 0:02:21]} exd4 {[%emt 0:00:30]} 12. Bd2 {[%emt 0:00:26]} c6 {[%emt 0:00:14]} 13. Nxf6+ {[%emt 0:00:55]} Qxf6 {[%emt 0:00:04]} 14. c3 {[%emt 0:01:33]} dxc3 {[%emt 0:00:56]} 15. bxc3 {[%emt 0:00:13]} Bb6 {[%emt 0:00:48]} 16. Rc1 {[%emt 0:00:58]} Be6 {[%emt 0:00:22]} 17. Be3 {[%emt 0:02:08]} Ba5 {[%emt 0:01:57]} 18. d4 {[%emt 0:01:58]} Qg6 {[%emt 0:01:47]} 19. Qf3 {[%emt 0:02:19]} Bxb3 {[%emt 0:02:04]} 20. axb3 {[%emt 0:00:05]} Rfe8 {[%emt 0:00:33]} 21. b4 {[%emt 0:02:26]} Bb6 {[%emt 0:01:52]} 22. Bf4 {[%emt 0:01:56]} Re6 {[%emt 0:03:56]} 23. Rfe1 {[%emt 0:01:17]} Rae8 {[%emt 0:00:17]} 24. e5 {[%emt 0:01:10]} dxe5 {[%emt 0:00:12]} 25. Rxe5 {[%emt 0:00:06]} Bc7 {[%emt 0:00:48]} 26. Rxe6 {[%emt 0:00:57]} Qxe6 {[%emt 0:00:04]} 27. Be3 {[%emt 0:00:16]} Qc4 {[%emt 0:00:30]} 28. Qf5 {[%emt 0:00:22]} Qd5 {[%emt 0:01:46]} 29. Qxd5 {[%emt 0:00:21]} cxd5 {[%emt 0:00:02]} 30. Re1 {[%emt 0:00:08]} a5 {[%emt 0:00:14]} 31. bxa5 {[%emt 0:00:19]} Bxa5 {[%emt 0:00:03]} 32. Bd2 {[%emt 0:00:05]} Rc8 {[%emt 0:00:06]} 33. Rc1 {[%emt 0:00:05]} Kf8 {[%emt 0:00:24]} 34. Kf1 {[%emt 0:00:03]} Ke7 {[%emt 0:00:07]} 35. Ke2 {[%emt 0:00:03]} Kf6 {[%emt 0:00:22]} 36. Kd3 {[%emt 0:00:06]} Rb8 {[%emt 0:00:57]} 37. Ra1 {[%emt 0:00:13]} Bc7 {[%emt 0:00:43]} 38. g3 {[%emt 0:00:13]} g5 {[%emt 0:00:20]} 39. f3 {[%emt 0:00:10]} Kg6 {[%emt 0:00:05]} 40. Ra6+ {[%emt 0:00:05]} Rb6 {[%emt 0:00:35]} 41. Ra7 {[%emt 0:00:05]} Bd6 {[%emt 0:00:07]} 42. Rd7 {[%emt 0:00:07]} f5 {[%emt 0:00:09]} 43. Rd8 {[%emt 0:00:06]} f4 {[%emt 0:00:26]} 44. g4 {[%emt 0:00:05]} Kg7 {[%emt 0:00:24]} 45. Rd7+ {[%emt 0:00:04]} Kf6 {[%emt 0:00:05]} 46. Rh7 {[%emt 0:00:07]} Bf8 {[%emt 0:00:08]} 47. Ra7 {[%emt 0:00:04]} b4 {[%emt 0:00:12]} 48. cxb4 {[%emt 0:00:04]} Bxb4 {[%emt 0:00:02]} 49. Bxb4 {[%emt 0:00:02]} Rxb4 {[%emt 0:00:01]} 50. Ra6+ {[%emt 0:00:03]} Kg7 {[%emt 0:00:02]} 51. Rd6 {[%emt 0:00:02]} Rb3+ {[%emt 0:00:02]} 52. Ke2 {[%emt 0:00:04]} Rb2+ {[%emt 0:00:02]} 53. Kd3 {[%emt 0:00:09]} Rb5 {[%emt 0:00:06]} 54. Kc3 {[%emt 0:00:07]} Kh7 {[%emt 0:00:14]} 55. Kc2 {[%emt 0:00:10]} Kg7 {[%emt 0:00:04]} 56. Kc3 {[%emt 0:00:04]} Kh7 {[%emt 0:00:08]} 57. Rd7+ {[%emt 0:00:03]} Kg6 {[%emt 0:00:02]} 58. Rd6+ {[%emt 0:00:03]} Kg7 {[%emt 0:00:02]} 59. Rd7+ {[%emt 0:00:04]} Kg6 {[%emt 0:00:02]} 60. Rd6+ {[%emt 0:00:03]} Kh7 {[%emt 0:00:02]} 61. Rd8 {[%emt 0:00:10]} Kg7 {[%emt 0:00:04]} 62. Rd7+ {[%emt 0:00:05]} Kg6 {[%emt 0:00:02]} 63. Rd6+ {[%emt 0:00:03]} Kh7 {[%emt 0:00:02]} 64. Rd7+ {[%emt 0:00:03]} Kg8 {[%emt 0:00:03]} 65. Rd6 {[%emt 0:00:06]} Kg7 {[%emt 0:00:02]} 66. h3 {[%emt 0:00:05]} Kh7 {[%emt 0:00:04]} 67. Kd3 {[%emt 0:00:06]} Rb3+ {[%emt 0:00:04]} 68. Ke2 {[%emt 0:00:03]} Rb2+ {[%emt 0:00:02]} 69. Kd3 {[%emt 0:00:07]} Rb3+ {[%emt 0:00:02]} 70. Ke2 {[%emt 0:00:03]} Rb2+ {[%emt 0:00:03]} 71. Ke1 {[%emt 0:00:10]} Rb5 {[%emt 0:00:06]} 72. Ke2 {[%emt 0:00:05]} Rb2+ {[%emt 0:00:02]} 73. Ke1 {[%emt 0:00:03]} Rb1+ {[%emt 0:00:03]} 74. Ke2 {[%emt 0:00:02]} Rb5 {[%emt 0:00:02]} 75. Ke1 {[%emt 0:00:05]} Kg7 {[%emt 0:00:02]} 76. Ke2 {[%emt 0:00:05]} Kh7 {[%emt 0:00:03]} 77. Ke1 {[%emt 0:00:03]} Rb1+ {[%emt 0:00:06]} 78. Ke2 {[%emt 0:00:03]} Rb2+ {[%emt 0:00:03]} 79. Ke1 {[%emt 0:00:03]} Rb5 {[%emt 0:00:03]} 80. Ke2 {[%emt 0:00:04]} Kg7 {[%emt 0:00:03]} 81. Ke1 {[%emt 0:00:10]} Kh7 {[%emt 0:00:09]} 82. Ke2 {[%emt 0:00:03]} Rb2+ {[%emt 0:00:04]} 1/2-1/2

[Event "Gaprindashvili Cup Women I Stage 2020"]
[Site "Online"]
[Date "2020.11.04"]
[Round "4.11"]
[White "Tsetskhladze, Mariam"]
[Black "Kalandadze, Mariam"]
[Result "1-0"]
[ECO "B51"]
[WhiteElo "1477"]
[BlackElo "1147"]
[Annotator "NA RC"]
[PlyCount "145"]
[EventDate "2020.11.04"]
[EventType "swiss"]
[SourceTitle "playchess.com"]
[Source "ChessBase"]
[SourceQuality "1"]
[TimeControl "1500+5"]

1. e4 {[%emt 0:00:00]} c5 {[%emt 0:00:04]} 2. Nf3 {[%emt 0:00:03]} d6 {[%emt 0:00:05]} 3. Bb5+ {[%emt 0:00:11]} Nc6 {[%emt 0:00:04]} 4. O-O {[%emt 0:00:07]} Bd7 {[%emt 0:00:05]} 5. Re1 {[%emt 0:00:04]} a6 {[%emt 0:00:03]} 6. Bf1 {[%emt 0:00:03]} Nf6 {[%emt 0:01:56]} 7. c3 {[%emt 0:00:43]} Bg4 {[%emt 0:00:13]} 8. h3 {[%emt 0:00:24]} Bxf3 {[%emt 0:00:05]} 9. Qxf3 {[%emt 0:00:03]} e6 {[%emt 0:00:04]} 10. Na3 {[%emt 0:03:08]} Be7 {[%emt 0:00:30]} 11. Nc2 {[%emt 0:00:31]} O-O {[%emt 0:00:40]} 12. d4 {[%emt 0:00:25]} cxd4 {[%emt 0:00:13]} 13. cxd4 {[%emt 0:01:41]} Qb6 {[%emt 0:03:18]} 14. Qd3 {[%emt 0:03:18]} Rac8 {[%emt 0:01:15]} 15. Be3 {[%emt 0:01:12]} d5 {[%emt 0:03:53]} 16. e5 {[%emt 0:01:42]} Nd7 {[%emt 0:00:09]} 17. f4 {[%emt 0:01:40]} Nb4 {[%emt 0:01:45]} 18. Nxb4 {[%emt 0:01:11]} Bxb4 {[%emt 0:01:42]} 19. Rec1 {[%emt 0:00:18]} Qa7 {[%emt 0:01:05]} 20. Rc2 {[%emt 0:01:50]} Nb6 {[%emt 0:01:08]} 21. Rac1 {[%emt 0:00:16]} Rc4 {[%emt 0:01:44]} 22. Qb3 {[%emt 0:01:08]} Rxc2 {[%emt 0:01:09]} 23. Rxc2 {[%emt 0:00:07]} Be7 {[%emt 0:00:14]} 24. Rc7 {[%emt 0:00:54]} Bd8 {[%emt 0:00:28]} 25. Rc1 {[%emt 0:00:07]} Be7 {[%emt 0:00:10]} 26. Bd3 {[%emt 0:00:27]} h6 {[%emt 0:00:52]} 27. f5 {[%emt 0:01:31]} Rc8 {[%emt 0:00:43]} 28. Rxc8+ {[%emt 0:00:47]} Nxc8 {[%emt 0:00:06]} 29. fxe6 {[%emt 0:00:07]} fxe6 {[%emt 0:00:05]} 30. Qc2 {[%emt 0:00:04]} Qb8 {[%emt 0:00:27]} 31. Bh7+ {[%emt 0:00:18]} Kh8 {[%emt 0:02:07]} 32. Qg6 {[%emt 0:00:06]} Qc7 {[%emt 0:01:01]} 33. Bxh6 {[%emt 0:00:19]} Bb4 {[%emt 0:00:11]} 34. Be3 {[%emt 0:00:26]} Ne7 {[%emt 0:00:07]} 35. Qd3 {[%emt 0:00:16]} Qc4 {[%emt 0:00:06]} 36. Qxc4 {[%emt 0:00:14]} dxc4 {[%emt 0:00:01]} 37. Be4 {[%emt 0:00:03]} b5 {[%emt 0:00:04]} 38. Bb7 {[%emt 0:01:29]} Nd5 {[%emt 0:00:02]} 39. Bf2 {[%emt 0:00:35]} a5 {[%emt 0:00:04]} 40. Bc6 {[%emt 0:00:13]} Nc7 {[%emt 0:00:03]} 41. a3 {[%emt 0:00:06]} Be7 {[%emt 0:00:03]} 42. Be3 {[%emt 0:00:09]} a4 {[%emt 0:00:03]} 43. Kf1 {[%emt 0:00:03]} Kh7 {[%emt 0:00:02]} 44. Ke2 {[%emt 0:00:02]} Kg6 {[%emt 0:00:02]} 45. Kf3 {[%emt 0:00:06]} Kf5 {[%emt 0:00:04]} 46. g4+ {[%emt 0:00:06]} Kg6 {[%emt 0:00:02]} 47. Ke4 {[%emt 0:00:08]} Kf7 {[%emt 0:00:04]} 48. d5 {[%emt 0:00:03]} exd5+ {[%emt 0:00:19]} 49. Bxd5+ {[%emt 0:00:03]} Kg6 {[%emt 0:00:11]} 50. Bb6 {[%emt 0:00:10]} Nxd5 {[%emt 0:00:07]} 51. Kxd5 {[%emt 0:00:02]} Kg5 {[%emt 0:00:03]} 52. Ke6 {[%emt 0:00:09]} Bf8 {[%emt 0:00:08]} 53. Kf7 {[%emt 0:00:03]} Kf4 {[%emt 0:00:05]} 54. e6 {[%emt 0:00:02]} Bd6 {[%emt 0:00:04]} 55. e7 {[%emt 0:00:02]} Bxe7 {[%emt 0:00:02]} 56. Kxe7 {[%emt 0:00:02]} Ke4 {[%emt 0:00:02]} 57. Kf7 {[%emt 0:00:03]} Kd3 {[%emt 0:00:01]} 58. Kxg7 {[%emt 0:00:02]} c3 {[%emt 0:00:03]} 59. bxc3 {[%emt 0:00:03]} Kxc3 {[%emt 0:00:02]} 60. Bc5 {[%emt 0:00:02]} Kb3 {[%emt 0:00:07]} 61. Bb4 {[%emt 0:00:02]} Kc4 {[%emt 0:00:05]} 62. h4 {[%emt 0:00:01]} Kd5 {[%emt 0:00:03]} 63. h5 {[%emt 0:00:01]} Ke6 {[%emt 0:00:14]} 64. h6 {[%emt 0:00:01]} Kd7 {[%emt 0:00:03]} 65. h7 {[%emt 0:00:02]} Kc7 {[%emt 0:00:03]} 66. h8=Q {[%emt 0:00:03]} Kb6 {[%emt 0:00:03]} 67. Qd8+ {[%emt 0:00:02]} Kc6 {[%emt 0:00:02]} 68. Qd6+ {[%emt 0:00:02]} Kb7 {[%emt 0:00:03]} 69. g5 {[%emt 0:00:05]} Ka7 {[%emt 0:00:05]} 70. Bc5+ {[%emt 0:00:02]} Ka8 {[%emt 0:00:03]} 71. Qd8+ {[%emt 0:00:05]} Kb7 {[%emt 0:00:02]} 72. Qb6+ {[%emt 0:00:03]} Kc8 {[%emt 0:00:04]} 73. Bd6 {[%emt 0:00:03]} 1-0

[Event "Gaprindashvili Cup Women I Stage 2020"]
[Site "Online"]
[Date "2020.11.04"]
[Round "5.1"]
[White "Esadze, Tamari"]
[Black "Khazhomia, Anuki"]
[Result "1-0"]
[ECO "B06"]
[WhiteElo "1889"]
[BlackElo "1880"]
[Annotator "NA RC"]
[PlyCount "109"]
[EventDate "2020.11.04"]
[EventType "swiss"]
[SourceTitle "playchess.com"]
[Source "ChessBase"]
[SourceQuality "1"]
[TimeControl "1500+5"]

{[%evp 13,81,98,143,132,177,94,90,85,97,72,83,79,82,59,64,32767,50,18,59,45,77,88,234,232,517,191,229,197,220,208,205,206,369,212,229,214,269,198,221,204,212,213,215,229,347,32767,32767,32767,32767,302,301,308,32767,241,563,579,614,600,837,1012,863,32767,32767,32767,32767,32767,12841,6301,29971,29982]} 1. e4 {[%emt 0:00:00]} g6 {[%emt 0:00:04]} 2. d4 {[%emt 0:00:03]} Bg7 {[%emt 0:00:03]} 3. Nc3 {[%emt 0:00:02]} d6 {[%emt 0:00:04]} 4. Nf3 {[%emt 0:00:02]} c6 {[%emt 0:00:26]} 5. a4 {[%emt 0:00:03]} Qc7 {[%emt 0:00:14]} 6. Be3 {[%emt 0:00:09] B06: Modern Defence.} e5 {[%emt 0:00:48]} 7. Bc4 {[%emt 0:00:38] [#]} Bg4 $146 {[%emt 0:02:22]} ({Predecessor:} 7... b6 8. O-O Nf6 9. dxe5 dxe5 10. h3 O-O 11. Qe2 Nh5 12. Rfe1 Re8 13. Ng5 Re7 {1-0 (47) Przybylski,W (2378)-Cieslar,M (2012) Katowice 2015}) 8. dxe5 {[%emt 0:00:51]} dxe5 {[%emt 0:05:04]} (8... Bxf3 $16 9. Qxf3 Bxe5) 9. O-O {[%emt 0:01:09]} (9. h3 $18 Bxf3 10. Qxf3) 9... Qe7 {[%emt 0:00:59]} 10. h3 {[%emt 0:01:26]} Be6 {[%emt 0:00:10]} 11. Bxe6 {[%emt 0:00:10]} Qxe6 {[%emt 0:00:13]} 12. Qe2 {[%emt 0:00:20]} Na6 {[%emt 0:01:02]} 13. Rad1 {[%emt 0:00:19]} Nf6 {[%emt 0:00:25]} 14. Ng5 {[%emt 0:01:42]} Qe7 {[%emt 0:00:15]} 15. f4 {[%emt 0:00:14]} O-O {[%emt 0:03:06]} 16. f5 {[%emt 0:01:23]} h6 {[%emt 0:06:05]} 17. Nf3 {[%emt 0:00:17]} Qb4 $2 {[%emt 0:01:24] [#]} (17... g5 $16) 18. fxg6 $1 {[%emt 0:02:22]} (18. Nxe5 Nxe4 19. fxg6 Ng3 $16 {[%mdl 64] Double Attack}) 18... Nxe4 $2 {[%emt 0:01:54]} (18... fxg6 {was necessary.} 19. Nxe5 Nxe4) 19. gxf7+ {[%emt 0:02:03]} (19. Nxe4 $142 Qxe4 20. Rd7) 19... Rxf7 {[%emt 0:00:04]} 20. Nxe4 {[%emt 0:00:06]} Qxe4 {[%emt 0:00:04]} 21. Nd2 {[%emt 0:01:38]} Rxf1+ {[%emt 0:00:29]} 22. Rxf1 {[%emt 0:00:04]} Qd5 $2 {[%emt 0:00:41]} (22... Qxa4 23. Qh5 Rf8 24. Rxf8+ (24. Bxh6 Rxf1+ 25. Nxf1 Bxh6 $16) 24... Kxf8 25. Qf5+ (25. Bxh6 Qd4+ 26. Kh2 Bxh6 $14) 25... Kg8) 23. Qh5 {[%emt 0:01:23]} (23. Qg4 $142) 23... Qe6 {[%emt 0:00:03]} 24. Ne4 {[%emt 0:00:32]} Rf8 {[%emt 0:00:38]} 25. Rd1 {[%emt 0:00:58]} ({But not} 25. Bxa7 $6 Rxf1+ 26. Kxf1 Qc4+ 27. Qe2 Qxa4 $16) 25... Qf5 {[%emt 0:00:07]} 26. Qxf5 {[%emt 0:00:45]} Rxf5 {[%emt 0:00:03]} 27. Nd6 {[%emt 0:00:01]} ({But not} 27. Bxa7 Rf4) 27... Rf6 {[%emt 0:00:08]} 28. Nxb7 {[%emt 0:00:09]} Rf7 {[%emt 0:00:02]} (28... Nb4 {was worth a try.} 29. Rd8+ (29. Bxa7 Rf7 $11) 29... Kh7) 29. Nc5 {[%emt 0:00:16]} Nb4 {[%emt 0:00:08]} 30. c4 {[%emt 0:00:27]} Re7 {[%emt 0:00:04]} 31. Ne4 {[%emt 0:00:39]} Nc2 {[%emt 0:00:05]} 32. Bc5 {[%emt 0:00:47]} Rb7 {[%emt 0:00:03]} 33. b4 {[%emt 0:01:09]} Nxb4 $2 {[%emt 0:00:06]} (33... Nd4 {is tougher.} 34. b5 h5 35. Bxd4 exd4) 34. Rd8+ {[%emt 0:00:03]} Kh7 {[%emt 0:00:04]} 35. Nd6 {[%emt 0:00:07]} Bf6 {[%emt 0:00:16]} 36. Nxb7 {[%emt 0:00:09]} Bxd8 {[%emt 0:00:02]} 37. Bxb4 {[%emt 0:00:10]} Bb6+ {[%emt 0:00:04]} 38. Bc5 {[%emt 0:00:04]} Kg6 {[%emt 0:00:04]} 39. Bxb6 {[%emt 0:00:04]} axb6 {[%emt 0:00:02]} 40. Kf2 $18 {[%emt 0:00:11]} (40. c5 $142 bxc5 41. Nxc5 Kf6 42. a5 Ke7 43. a6 Kd6 44. a7 Kxc5 45. a8=Q) 40... Kf5 {[%emt 0:00:03]} 41. c5 {[%emt 0:00:17]} b5 {[%emt 0:00:12]} 42. axb5 {[%emt 0:00:02]} cxb5 {[%emt 0:00:02]} 43. Nd6+ {[%emt 0:00:01]} Ke6 {[%emt 0:00:03]} 44. Nxb5 {[%emt 0:00:04]} Kd5 {[%emt 0:00:02]} 45. Ke3 {[%emt 0:00:03]} Kxc5 {[%emt 0:00:04]} 46. Nc3 {[%emt 0:00:02]} Kd6 {[%emt 0:00:04]} 47. Ke4 {[%emt 0:00:02]} Ke6 {[%emt 0:00:02]} 48. Nd5 {[%emt 0:00:02]} Kd6 {[%emt 0:00:03]} 49. Ne3 {[%emt 0:00:01]} Ke6 {[%emt 0:00:02]} 50. Ng4 {[%emt 0:00:02]} h5 {[%emt 0:00:03]} 51. Nxe5 {[%emt 0:00:01]} Kf6 {[%emt 0:00:03]} 52. Kf4 {[%emt 0:00:03]} h4 {[%emt 0:00:08]} 53. Nf3 {[%emt 0:00:04]} Kg6 {[%emt 0:00:02]} 54. Nxh4+ {[%emt 0:00:02]} Kh5 {[%emt 0:00:02]} 55. Nf3 {[%emt 0:00:02]} 1-0